[Event "76th GEO-ch Women 2019"]
[Site "Tbilisi"]
[Date "2019.03.27"]
[Round "8.4"]
[White "Tsereteli, Tamar"]
[Black "Tsatsalashvili, Keti"]
[Result "1/2-1/2"]
[ECO "B14"]
[WhiteElo "2315"]
[BlackElo "2326"]
[Annotator "NA"]
[PlyCount "186"]
[EventDate "2019.03.19"]
[EventType "swiss"]
[EventCountry "GEO"]
[SourceTitle "playchess.com"]
[Source "ChessBase"]
[SourceQuality "1"]
[TimeControl "40/5400+30:1800+30"]

1. e4 {[%emt 0:00:00]} c6 {[%emt 0:18:54]} 2. d4 {[%emt 0:00:00]} d5 {[%emt 0:00:05]} 3. exd5 {[%emt 0:00:00]} cxd5 {[%emt 0:00:05]} 4. c4 {[%emt 0:00:10]} Nf6 {[%emt 0:00:36]} 5. Nc3 {[%emt 0:00:35]} e6 {[%emt 0:00:28]} 6. Nf3 {[%emt 0:00:24]} Be7 {[%emt 0:00:36]} 7. cxd5 {[%emt 0:01:01]} Nxd5 {[%emt 0:00:53]} 8. Bd3 {[%emt 0:00:20]} Nc6 {[%emt 0:00:30]} 9. O-O {[%emt 0:00:36]} O-O {[%emt 0:01:32]} 10. Re1 {[%emt 0:00:27]} Bf6 {[%emt 0:00:42]} 11. Be4 {[%emt 0:03:57] LiveBook: 542 Games} Nce7 {[%emt 0:00:40]} 12. Qd3 {[%emt 0:11:11]} h6 {[%emt 0:02:52]} 13. Ne5 {[%emt 0:03:10]} Bd7 {[%emt 0:04:21] D42: Queen's Gambit Declined: Semi-Tarrasch: 5 cxd5 Nxd5 6 e3 Nc6 7 Bd3} (13... Nxc3 14. Qxc3 Nf5 15. Be3 Rb8 16. Bf4 g5 17. Bxf5 gxf4 18. Be4 Bg7 19. Rad1 Bd7 20. Qf3 Bb5 21. Bxb7 Qg5 22. b3 {0-1 (61) Gelfand,B (2743)-Wang,Y (2720) Beijing 2014}) 14. Qg3 {[%emt 0:04:53]} Kh8 {[%emt 0:03:40] [#]} (14... Bc6 $1 $11) 15. Qh3 $1 {[%emt 0:04:16]} Nxc3 $146 {[%emt 0:20:54]} ({Predecessor:} 15... Bxe5 16. Bxh6 f5 17. Bg5+ Kg8 18. Nxd5 Bd6 19. Nxe7+ Bxe7 20. Bxe7 Qxe7 21. Bxf5 Rxf5 22. Qxf5 {1-0 (34) Belozerov,A (2487)-Perun,S (2401) Smolensk 2000}) 16. bxc3 {[%emt 0:02:05]} Ng8 {[%emt 0:08:06]} 17. Bxb7 {[%emt 0:07:06]} Rb8 {[%emt 0:00:05]} 18. Nxd7 {[%emt 0:08:32]} Qxd7 {[%emt 0:00:16]} 19. Be4 {[%emt 0:00:14]} Qc7 {[%emt 0:03:28]} 20. Qf3 {[%emt 0:05:42]} Qa5 {[%emt 0:00:48]} 21. Bf4 {[%emt 0:07:07]} Rb2 {[%emt 0:01:41]} 22. Bd6 {[%emt 0:02:21]} Rc8 {[%emt 0:01:20]} (22... Be7 $142 23. Be5 Nf6) 23. Bb4 {[%emt 0:00:56]} Qg5 {[%emt 0:06:11]} 24. Re2 {[%emt 0:09:17]} Rxe2 {[%emt 0:02:48]} 25. Qxe2 {[%emt 0:00:08]} Be7 {[%emt 0:10:47]} 26. Qa6 {[%emt 0:04:04] Double Attack} Rd8 {[%emt 0:03:09]} 27. Qxa7 {[%emt 0:09:00]} Bxb4 {[%emt 0:00:05]} 28. cxb4 {[%emt 0:00:05]} Qd2 $18 {[%emt 0:01:06]} 29. b5 {[%emt 0:06:05]} Rxd4 {[%emt 0:00:41]} 30. Bf3 {[%emt 0:00:08]} e5 {[%emt 0:02:20]} 31. h3 {[%emt 0:04:20]} Qb2 {[%emt 0:01:53]} 32. Re1 {[%emt 0:01:49]} Qxb5 {[%emt 0:01:01]} 33. Qxf7 {[%emt 0:00:47]} Nf6 {[%emt 0:00:33]} 34. Qe6 {[%emt 0:03:21]} e4 {[%emt 0:02:39]} 35. Bxe4 {[%emt 0:00:38]} Nxe4 {[%emt 0:00:25]} 36. Rxe4 {[%emt 0:00:21]} Rd2 {[%emt 0:01:01]} 37. Qe8+ {[%emt 0:00:18]} Qxe8 {[%emt 0:00:03]} 38. Rxe8+ {[%emt 0:00:02]} Kh7 {[%emt 0:00:05]} 39. a4 {[%emt 0:00:12]} Ra2 {[%emt 0:00:22]} 40. Ra8 {[%emt 0:00:00]} h5 {[%emt 0:00:00]} 41. h4 {[%emt 0:02:35]} Kg6 {[%emt 0:03:50]} 42. g3 {[%emt 0:01:04]} Ra1+ {[%emt 0:00:25]} 43. Kg2 {[%emt 0:00:04]} Ra3 {[%emt 0:00:07]} 44. a5 {[%emt 0:00:56]} Kf6 {[%emt 0:04:30]} 45. a6 {[%emt 0:08:41]} Kf7 {[%emt 0:01:17]} 46. g4 {[%emt 0:01:30]} hxg4 {[%emt 0:14:52]} 47. h5 {[%emt 0:00:08]} g5 {[%emt 0:01:48]} 48. h6 {[%emt 0:02:12]} Kg6 {[%emt 0:00:29]} 49. a7 {[%emt 0:00:17]} Kh7 {[%emt 0:00:37]} 50. Kf1 {[%emt 0:00:22]} Ra2 {[%emt 0:01:06]} 51. Ke1 {[%emt 0:00:05]} Ra1+ {[%emt 0:00:11]} 52. Kd2 {[%emt 0:00:20]} Ra2+ {[%emt 0:00:26]} 53. Kd3 {[%emt 0:00:25]} Ra3+ {[%emt 0:00:32]} 54. Ke4 {[%emt 0:00:10]} Ra2 {[%emt 0:00:20]} 55. Ke5 {[%emt 0:12:17]} Re2+ {[%emt 0:00:17]} 56. Kd5 {[%emt 0:00:48]} Rd2+ {[%emt 0:00:24]} 57. Kc4 {[%emt 0:00:48]} Ra2 {[%emt 0:00:25]} 58. Kb3 {[%emt 0:01:13]} Ra6 {[%emt 0:00:28]} 59. Kb2 {[%emt 0:00:14]} Ra5 {[%emt 0:00:05]} 60. Kc2 {[%emt 0:00:04]} Ra2+ {[%emt 0:00:38]} 61. Kd3 {[%emt 0:00:07]} Ra3+ {[%emt 0:00:39]} 62. Ke2 {[%emt 0:00:02]} Ra2+ {[%emt 0:00:10]} 63. Kf1 {[%emt 0:00:01]} Ra1+ {[%emt 0:00:32]} 64. Kg2 {[%emt 0:00:02]} Ra3 {[%emt 0:00:09]} 65. Kh2 {[%emt 0:00:05]} Ra2 {[%emt 0:00:28]} 66. Kg3 {[%emt 0:00:05]} Ra4 {[%emt 0:00:06]} 67. Rf8 {[%emt 0:02:37]} Rxa7 {[%emt 0:00:30]} 68. Kxg4 {[%emt 0:00:11]} Kxh6 {[%emt 0:00:48]} 69. Rf6+ {[%emt 0:00:02]} Kg7 {[%emt 0:00:08]} 70. Kxg5 {[%emt 0:00:04]} Ra5+ {[%emt 0:00:52]} 71. Rf5 {[%emt 0:00:05]} Ra2 {[%emt 0:00:13]} 72. f3 {[%emt 0:00:50]} Rg2+ {[%emt 0:00:50]} 73. Kf4 {[%emt 0:00:03]} Ra2 {[%emt 0:00:05]} 74. Rb5 {[%emt 0:00:12]} Ra3 {[%emt 0:00:12]} 75. Kg4 {[%emt 0:00:07]} Rc3 {[%emt 0:00:54]} 76. f4 {[%emt 0:00:48]} Kf6 {[%emt 0:01:13]} 77. Rb6+ {[%emt 0:00:11]} Kf7 {[%emt 0:00:05]} 78. Kg5 {[%emt 0:00:05]} Rc5+ {[%emt 0:02:26]} 79. f5 {[%emt 0:00:15]} Rc7 {[%emt 0:03:43]} 80. Rh6 {[%emt 0:01:36]} Rc1 {[%emt 0:00:18]} 81. Rh7+ {[%emt 0:00:38]} Kg8 {[%emt 0:00:06]} 82. Re7 {[%emt 0:00:18]} Kf8 {[%emt 0:01:49]} 83. Kf6 {[%emt 0:00:12]} Rc6+ {[%emt 0:01:13]} 84. Re6 {[%emt 0:00:02]} Rc7 {[%emt 0:00:13]} 85. Kg6 {[%emt 0:03:35]} Rg7+ {[%emt 0:00:17]} 86. Kf6 {[%emt 0:00:04]} Ra7 {[%emt 0:00:30]} 87. Rb6 {[%emt 0:00:33]} Rf7+ {[%emt 0:00:16]} 88. Kg5 {[%emt 0:00:07]} Rg7+ {[%emt 0:00:33]} 89. Rg6 {[%emt 0:00:03]} Ra7 {[%emt 0:00:18]} 90. Kh6 {[%emt 0:01:19]} Ra1 {[%emt 0:00:42]} 91. Rf6+ {[%emt 0:00:38]} Kg8 {[%emt 0:00:28]} 92. Rb6 {[%emt 0:00:17]} Kf7 {[%emt 0:00:25]} 93. Kg5 {[%emt 0:00:20]} Rg1+ 1/2-1/2

[Event "76th GEO-ch Women 2019"]
[Site "Tbilisi"]
[Date "2019.03.27"]
[Round "8.5"]
[White "Gvetadze, Sofio"]
[Black "Khurtsilava, Inga"]
[Result "1/2-1/2"]
[ECO "B30"]
[WhiteElo "2321"]
[BlackElo "2234"]
[Annotator "NA"]
[PlyCount "109"]
[EventDate "2019.03.19"]
[EventType "swiss"]
[EventCountry "GEO"]
[SourceTitle "playchess.com"]
[Source "ChessBase"]
[SourceQuality "1"]
[TimeControl "40/5400+30:1800+30"]

{[%evp 8,66,22,0,-5,-13,-7,-35,68,0,33,2,85,87,62,69,107,94,110,93,90,105,102,44,57,29,33,25,32,21,36,19,24,0,27,30,30,0,67,52,79,65,67,39,24,37,74,0,0,-160,-10,-51,-52,-54,-61,-56,-53,-60,-30,-46,-54]} 1. e4 {[%emt 0:00:00]} c5 {[%emt 0:00:14]} 2. Nf3 {[%emt 0:00:00]} Nc6 {[%emt 0:00:08]} 3. Bb5 {[%emt 0:00:00]} e6 {[%emt 0:00:24]} 4. Bxc6 {[%emt 0:00:06]} bxc6 {[%emt 0:00:03]} 5. d3 {[%emt 0:00:10]} Ne7 {[%emt 0:00:08]} 6. e5 {B30: Sicilian: 2...Nc6 3 Bb5, lines without ...g6} (6. Qe2 d6 7. e5 dxe5 8. Qxe5 Ng6 9. Qe4 Qd5 10. Nc3 Qxe4+ 11. Nxe4 f5 12. Ned2 Be7 13. Nc4 Ba6 14. Nfe5 Nxe5 15. Nxe5 {½-½ (43) Onischuk,V (2637)-Yu,Y (2751) Riadh 2017}) 6... Ng6 7. h4 {[%emt 0:01:39]} h5 {[%emt 0:02:42]} (7... f6 $11) 8. Nc3 {[%emt 0:02:30]} (8. Nbd2 $14) 8... Be7 {[%emt 0:00:20]} 9. Qe2 {[%emt 0:02:39]} d5 {[%emt 0:03:31]} (9... Qc7 $11 {remains equal.}) 10. exd6 {[%emt 0:00:29]} Qxd6 {[%emt 0:00:07]} 11. g3 $146 {[%emt 0:01:23]} ({Predecessor:} 11. Ne4 Qd5 12. c4 Qd8 13. Be3 Qb6 14. O-O e5 15. Rab1 {1-0 (42) Manik,M (2435)-Toma,K (2233) Warsaw 2009}) 11... Ba6 {[%emt 0:01:49]} 12. Bd2 {[%emt 0:01:21]} Rb8 {[%emt 0:01:24]} 13. b3 {[%emt 0:00:32]} Bc8 {[%emt 0:02:11]} 14. Ne4 {[%emt 0:02:59]} Qd5 {[%emt 0:00:22]} 15. c4 {[%emt 0:02:39]} ({White should try} 15. Bf4 $16 Nxf4 16. gxf4) 15... Qd8 {[%emt 0:00:27]} 16. Qe3 {[%emt 0:11:45]} e5 {[%emt 0:13:33]} 17. Bc3 {[%emt 0:14:40]} f6 $1 {[%emt 0:01:01]} 18. Nh2 {[%emt 0:01:06]} Bf5 {[%emt 0:05:33]} 19. O-O-O {[%emt 0:01:41]} Kf7 {[%emt 0:07:11]} 20. Nxc5 {[%emt 0:06:00]} Qb6 21. Na4 {[%emt 0:06:40]} Qa6 {[%emt 0:07:05]} 22. Rhe1 {[%emt 0:09:30]} c5 {[%emt 0:03:05]} (22... Ba3+ $11 23. Nb2 c5) 23. Bb2 {[%emt 0:01:12]} Rbd8 {[%emt 0:05:33]} 24. Kb1 {[%emt 0:08:15]} Qc6 {[%emt 0:05:32]} 25. Ka1 {[%emt 0:01:40]} Rd7 {[%emt 0:00:47]} 26. Nc3 {[%emt 0:01:30]} a5 {[%emt 0:00:16]} (26... Bd8 $11) 27. Qe2 {[%emt 0:01:36]} (27. Rg1 $14) 27... Qg2 {[%emt 0:11:08]} 28. f3 $2 {[%emt 0:01:15]} ({White should try} 28. Nf1 $11 Bg4 {[%mdl 64] Skewer} 29. Qd2) 28... Qxe2 {[%emt 0:13:15]} ({Better is} 28... Qxg3 $17 29. Nf1 Qxh4) 29. Rxe2 {[%emt 0:00:02]} Rhd8 {[%emt 0:00:23]} ({Reject} 29... Bxd3 $6 30. Red2 $11) 30. Nd5 {[%emt 0:02:56]} Be6 {[%emt 0:00:35]} 31. Bc3 {[%emt 0:00:45]} Bxd5 {[%emt 0:06:26]} 32. cxd5 {[%emt 0:00:01]} a4 {[%emt 0:00:19]} 33. bxa4 $15 {[%emt 0:00:34]} Rxd5 {[%emt 0:00:05]} 34. Red2 {[%emt 0:02:26]} Ra8 {[%emt 0:00:32]} 35. a5 {[%emt 0:00:11]} Bd8 {[%emt 0:02:31]} 36. Nf1 {[%emt 0:00:16]} Bxa5 37. Bxa5 Rxa5 {[%emt 0:01:20]} 38. Ne3 {[%emt 0:00:40]} Rd8 {[%emt 0:00:45]} 39. Rb2 {[%emt 0:01:03]} Ne7 {[%emt 0:02:26]} 40. Rb7 {[%emt 0:00:43]} Ke8 {[%emt 0:00:05]} 41. f4 {[%emt 0:01:36]} Ra3 {[%emt 0:04:28]} 42. fxe5 {[%emt 0:00:38]} Raxd3 {[%emt 0:06:44]} 43. Rxd3 {[%emt 0:00:35]} Rxd3 {[%emt 0:01:37]} 44. Nc4 {[%emt 0:00:14]} fxe5 {[%emt 0:00:54]} 45. Nxe5 {[%emt 0:00:08]} Rd1+ {[%emt 0:00:14]} 46. Kb2 {[%emt 0:00:02]} Nf5 {[%emt 0:00:09]} 47. a4 {[%emt 0:01:36]} Rd2+ {[%emt 0:05:41]} 48. Kc1 {[%emt 0:13:19]} Ra2 {[%emt 0:02:55]} 49. a5 {[%emt 0:00:13]} Nd4 {[%emt 0:00:35]} 50. Kb1 {[%emt 0:07:31]} Rxa5 {[%emt 0:02:00]} 51. Rxg7 {[%emt 0:00:03]} Rb5+ {[%emt 0:02:01]} 52. Kc1 {[%emt 0:07:31]} c4 {[%emt 0:00:42]} 53. Rg8+ {[%emt 0:08:46]} Ke7 {[%emt 0:00:25]} 54. Rg5 {[%emt 0:00:02]} Rb3 {[%emt 0:08:19]} 55. Nxc4 {[%emt 0:02:19]} 1/2-1/2

[Event "76th GEO-ch Women 2019"]
[Site "Tbilisi"]
[Date "2019.03.27"]
[Round "8.6"]
[White "Purtseladze, Maka"]
[Black "Khomeriki, Nino"]
[Result "1/2-1/2"]
[ECO "D60"]
[WhiteElo "2282"]
[BlackElo "2347"]
[Annotator "NA"]
[PlyCount "163"]
[EventDate "2019.03.19"]
[EventType "swiss"]
[EventCountry "GEO"]
[SourceTitle "playchess.com"]
[Source "ChessBase"]
[SourceQuality "1"]
[TimeControl "40/5400+30:1800+30"]

1. d4 {[%emt 0:01:09]} Nf6 {[%emt 0:01:35]} 2. Bg5 {[%emt 0:00:12]} d5 {[%emt 0:00:14]} 3. e3 {[%emt 0:00:24]} Nbd7 {[%emt 0:05:44]} 4. Nf3 {[%emt 0:02:56]} e6 {[%emt 0:02:05]} 5. c4 {[%emt 0:02:14]} Be7 {[%emt 0:03:41]} 6. Nc3 {[%emt 0:01:43]} O-O {[%emt 0:00:36]} 7. cxd5 {[%emt 0:01:14]} exd5 {[%emt 0:00:32]} 8. Bd3 {[%emt 0:00:57]} c6 {[%emt 0:00:14]} 9. Qc2 {[%emt 0:00:23]} Re8 {[%emt 0:00:26]} 10. O-O {[%emt 0:03:33]} Nf8 {[%emt 0:02:13]} 11. Ne5 {[%emt 0:04:58]} Ng4 {[%emt 0:07:29]} 12. Bf4 {[%emt 0:05:58]} Bd6 {[%emt 0:01:41] D36: Queen's Gambit Declined: Exchange Variation: Main line (5 Bg5 c6 6 Qc2)} 13. Nxg4 {[%emt 0:00:22]} Bxf4 {[%emt 0:07:25]} (13... Bxg4 14. Bg3 Bxg3 15. hxg3 Bh5 16. b4 a6 17. a4 Bg6 18. b5 axb5 19. axb5 Qd6 20. bxc6 bxc6 {½-½ (71) Horvath,J (2186)-Schuster,M (2223) Germany 2014}) 14. exf4 {[%emt 0:00:30]} Bxg4 {[%emt 0:00:06]} 15. f5 {[%emt 0:09:51]} f6 {[%emt 0:01:09]} 16. Qd2 $146 ({Predecessor:} 16. f3 Bh5 17. g4 Bf7 18. Qf2 Qe7 19. Rae1 Qd6 20. f4 Rxe1 21. Rxe1 {0-1 (63) Garcia del Campo,L-Vila Dupla,S Valladolid 1989}) 16... Qd6 {[%emt 0:06:07]} 17. f3 {[%emt 0:27:55]} Bh5 {[%emt 0:00:16]} 18. Ne2 {[%emt 0:00:20]} Bf7 {[%emt 0:01:03]} 19. Nf4 {[%emt 0:03:47]} Nd7 {[%emt 0:05:34]} 20. Rfe1 {[%emt 0:04:38]} b6 {[%emt 0:05:02]} 21. g3 {[%emt 0:02:11]} c5 {[%emt 0:04:04]} 22. Bb5 {[%emt 0:04:52]} cxd4 {[%emt 0:08:15]} 23. Bxd7 {[%emt 0:03:50]} Qxd7 {[%emt 0:00:20]} 24. g4 {[%emt 0:00:15]} Re3 {[%emt 0:16:35]} 25. Qxd4 {[%emt 0:00:57]} Rxe1+ {[%emt 0:01:34]} 26. Rxe1 {[%emt 0:00:04]} Rc8 {[%emt 0:00:03]} 27. b3 {[%emt 0:02:37]} Qd6 {[%emt 0:01:16]} 28. Re2 {[%emt 0:01:54]} Qc5 $14 {[%emt 0:03:23]} 29. Qxc5 {[%emt 0:09:25]} bxc5 {[%emt 0:00:08]} 30. Rd2 {[%emt 0:00:46]} Kf8 {[%emt 0:02:30]} 31. Kf2 {[%emt 0:00:09]} g5 {[%emt 0:05:30]} 32. fxg6 {[%emt 0:01:04]} hxg6 {[%emt 0:00:02]} 33. h4 {[%emt 0:00:44]} Kg7 {[%emt 0:04:17]} 34. Rd1 {[%emt 0:00:47]} c4 {[%emt 0:01:16]} 35. Ne2 {[%emt 0:03:10]} a5 {[%emt 0:01:27]} 36. Nd4 {[%emt 0:00:41]} a4 {[%emt 0:00:47]} 37. b4 {[%emt 0:00:31]} c3 {[%emt 0:02:20]} 38. Ke3 {[%emt 0:00:54]} a3 {[%emt 0:01:29]} 39. Rc1 {[%emt 0:00:32]} Rc4 {[%emt 0:00:27]} 40. b5 {[%emt 0:00:00]} g5 {[%emt 0:00:00]} 41. h5 {[%emt 0:03:24]} f5 {[%emt 0:05:39]} 42. b6 {[%emt 0:22:26]} f4+ {[%emt 0:04:44]} 43. Kd3 {[%emt 0:00:06]} Rb4 {[%emt 0:00:03]} 44. Rxc3 {[%emt 0:00:08]} Rxb6 {[%emt 0:00:01]} 45. Rxa3 {[%emt 0:00:19]} Kf6 {[%emt 0:00:11]} 46. Ra7 {[%emt 0:00:32]} Rb1 {[%emt 0:00:22]} 47. Ra6+ {[%emt 0:01:08]} Ke5 {[%emt 0:02:04]} 48. h6 {[%emt 0:03:21]} Bg8 {[%emt 0:05:41]} 49. Kc3 {[%emt 0:03:43]} Rc1+ {[%emt 0:02:00]} 50. Kd2 {[%emt 0:00:04]} Rh1 {[%emt 0:00:20]} 51. Nc6+ {[%emt 0:00:23]} Kd6 {[%emt 0:00:10]} 52. Nd4+ {[%emt 0:01:08]} Ke5 {[%emt 0:00:18]} 53. Kc3 {[%emt 0:00:45]} Rc1+ {[%emt 0:00:16]} 54. Kd2 {[%emt 0:00:10]} Rh1 {[%emt 0:00:06]} 55. Nc6+ {[%emt 0:00:24]} Kd6 {[%emt 0:00:18]} 56. Nb4+ {[%emt 0:00:28]} Kc5 {[%emt 0:00:16]} 57. Nd3+ {[%emt 0:00:06]} Kc4 {[%emt 0:00:31]} 58. Ra4+ {[%emt 0:01:19]} Kb5 {[%emt 0:00:02]} 59. Rb4+ {[%emt 0:00:21]} Ka5 {[%emt 0:02:00]} 60. Rb8 {[%emt 0:00:13]} Bh7 {[%emt 0:00:34]} 61. Ra8+ {[%emt 0:01:03]} Kb6 {[%emt 0:00:15]} 62. Rb8+ {[%emt 0:00:11]} Kc7 {[%emt 0:00:29]} 63. Rh8 {[%emt 0:00:08]} Rxh6 {[%emt 0:00:26]} 64. Ne5 {[%emt 0:00:47]} Rh4 {[%emt 0:00:41]} 65. Kc3 {[%emt 0:00:41]} Bb1 {[%emt 0:00:24]} 66. Rg8 {[%emt 0:00:21]} Bxa2 {[%emt 0:04:36]} 67. Rxg5 {[%emt 0:00:06]} Kd6 {[%emt 0:00:04]} 68. Kd4 {[%emt 0:00:29]} Rh1 {[%emt 0:00:23]} 69. Rg6+ {[%emt 0:00:26]} Kc7 {[%emt 0:01:26]} 70. Rf6 {[%emt 0:01:03]} Rd1+ {[%emt 0:00:11]} 71. Kc3 {[%emt 0:00:06]} d4+ {[%emt 0:00:56]} 72. Kc2 {[%emt 0:00:39]} Re1 {[%emt 0:00:21]} 73. Ng6 {[%emt 0:00:20]} Rf1 {[%emt 0:06:50]} 74. Nxf4 {[%emt 0:00:42]} Bc4 {[%emt 0:01:48]} 75. Nd3 {[%emt 0:00:49]} Rg1 {[%emt 0:00:02]} 76. Ne5 {[%emt 0:00:08]} Rg2+ {[%emt 0:00:05]} 77. Kc1 {[%emt 0:00:10]} Bb5 {[%emt 0:00:12]} 78. f4 {[%emt 0:01:10]} d3 {[%emt 0:00:10]} 79. Nxd3 {[%emt 0:00:11]} Bxd3 {[%emt 0:00:06]} 80. g5 {[%emt 0:00:02]} Kd7 {[%emt 0:00:43]} 81. Kd1 {[%emt 0:00:11]} Ke7 {[%emt 0:00:13]} 82. Ke1 {[%emt 0:00:06]} 1/2-1/2

[Event "76th GEO-ch Women 2019"]
[Site "Tbilisi"]
[Date "2019.03.28"]
[Round "9.2"]
[White "Khurtsilava, Inga"]
[Black "Purtseladze, Maka"]
[Result "0-1"]
[ECO "A01"]
[WhiteElo "2234"]
[BlackElo "2282"]
[Annotator "NA"]
[PlyCount "86"]
[EventDate "2019.03.19"]
[EventType "swiss"]
[EventCountry "GEO"]
[SourceTitle "playchess.com"]
[Source "ChessBase"]
[SourceQuality "1"]
[TimeControl "40/5400+30:1800+30"]

{[%evp 8,67,-7,-38,0,0,-2,4,7,-9,20,18,26,18,19,22,18,-15,-20,-36,-55,-48,-34,-131,-122,-114,-49,-54,-57,-79,18,-31,-35,-41,-19,-47,-10,-29,-3,-19,-5,-70,-51,-47,-55,-46,-45,-80,-71,-151,-172,-157,-154,-156,-164,-143,-127,32767,32767,-132,32767,-104]} 1. b3 {[%emt 0:00:37]} g6 {[%emt 0:00:00]} 2. Bb2 {[%emt 0:00:21]} Nf6 {[%emt 0:00:00]} 3. e4 {[%emt 0:08:50]} Bg7 {[%emt 0:00:34]} 4. e5 {[%emt 0:04:17]} Nd5 {[%emt 0:00:04]} 5. c4 {[%emt 0:02:02]} Nb6 {[%emt 0:00:24]} 6. d4 {[%emt 0:03:15]} d6 {[%emt 0:01:30]} 7. exd6 {[%emt 0:03:38] B02: Alekhine's Defence: Chase Variation and lines with early Nc3} (7. f4 dxe5 8. fxe5 O-O 9. Nf3 Bg4 10. Be2 c5 11. h3 Bxf3 12. Bxf3 Nc6 13. Bxc6 bxc6 14. O-O cxd4 15. Bxd4 {½-½ (37) Fridman,D (2591)-Khalifman,A (2617) Liepaja 2018}) 7... cxd6 {[%emt 0:00:15]} 8. Nf3 {[%emt 0:00:47]} Nc6 {[%emt 0:05:47]} 9. Qd2 {[%emt 0:01:46]} d5 {[%emt 0:10:41]} 10. Be2 {[%emt 0:01:40]} O-O {[%emt 0:06:47]} 11. c5 {[%emt 0:01:33]} Nd7 {[%emt 0:00:05]} 12. b4 {[%emt 0:00:05]} e5 {[%emt 0:09:32]} 13. dxe5 {[%emt 0:01:08]} Ndxe5 {[%emt 0:01:09]} 14. Nxe5 {[%emt 0:00:04]} Nxe5 {[%emt 0:00:10]} 15. f4 $146 {[%emt 0:04:31]} (15. O-O $15) 15... Nc4 {[%emt 0:04:17]} 16. Bxc4 {[%emt 0:00:14]} dxc4 {[%emt 0:00:24]} (16... Re8+ $17 17. Be2 Bg4) 17. Bxg7 {[%emt 0:08:40]} Kxg7 {[%emt 0:00:04]} 18. Qc3+ {[%emt 0:04:08]} Qf6 {[%emt 0:00:06]} ({Black should try} 18... Kg8 $15 19. O-O a5) 19. Kf2 {[%emt 0:01:24] [#]} a5 $1 {[%emt 0:02:45]} 20. b5 {[%emt 0:02:21]} Rd8 {[%emt 0:07:03]} 21. Qxf6+ {[%emt 0:03:22]} Kxf6 {[%emt 0:00:05]} 22. Re1 $1 {[%emt 0:01:46]} Bf5 {[%emt 0:03:31]} 23. Nc3 {[%emt 0:05:03]} Rac8 {[%emt 0:08:42]} 24. Re5 {[%emt 0:17:20]} (24. Rad1 $11) 24... Rd2+ {[%emt 0:01:52]} 25. Kg1 {[%emt 0:00:31]} Kg7 {[%emt 0:07:41]} 26. Rc1 {[%emt 0:03:41]} Kf8 {[%emt 0:01:00]} 27. c6 {[%emt 0:06:11]} bxc6 {[%emt 0:02:04]} 28. b6 {[%emt 0:00:09]} (28. bxc6 $142 Rxc6 29. Rxa5) 28... Rb8 {[%emt 0:01:41]} 29. Na4 {[%emt 0:01:03]} Bc2 {[%emt 0:06:36]} 30. Nb2 {[%emt 0:04:12]} Bd3 {[%emt 0:05:06]} 31. Na4 {[%emt 0:01:18]} Rxa2 {[%emt 0:00:47]} 32. Nc5 {[%emt 0:01:00]} Kg7 {[%emt 0:00:08]} 33. b7 {[%emt 0:00:12]} Rb2 {[%emt 0:01:59]} 34. g4 $17 {[%emt 0:03:40]} Rb5 {[%emt 0:05:35]} 35. g5 {[%emt 0:00:15]} a4 {[%emt 0:00:58]} 36. Rc3 {[%emt 0:00:18]} Rb3 {[%emt 0:03:22]} 37. Nxa4 {[%emt 0:04:57]} R8xb7 {[%emt 0:01:06]} 38. Rc1 {[%emt 0:00:51]} R7b5 {[%emt 0:01:22]} 39. Re7 {[%emt 0:00:52]} Ra5 {[%emt 0:00:30]} 40. Nc3 {[%emt 0:00:00]} Rf5 {[%emt 0:00:00]} 41. Ne4 {[%emt 0:02:46]} Rxf4 {[%emt 0:05:05]} 42. Nd6 {[%emt 0:07:07]} Rb2 {[%emt 0:02:11]} 43. Rce1 {[%emt 0:01:15]} Rff2 0-1